bitfinex-derivatives/quotes_SOLF0:USTF0_20250211
["timestamp","ask_amount","ask_price","bid_price","bid_amount"]
[1739310892389,8.84615328,197.99,197.96,0.03700006]
[1739310893292,8.84615328,197.99,197.96,5.08870006]
[1739310896199,0.03737985,197.99,197.98,5.0512]
[1739310897596,0.03737985,197.99,197.97,5.0514]
[1739310898196,8.84615328,197.99,197.96,0.03700006]
[1739310900498,0.03737985,197.99,197.96,0.03700006]
[1739310900998,8.80877343,197.97,197.96,0.03700006]
[1739310901595,0.03737985,197.99,197.96,8.84577349]
[1739310902502,8.80877343,197.97,197.96,0.03700006]
[1739310907996,0.03737985,197.99,197.96,0.03700006]
[1739310908505,0.03737985,197.99,197.98,13.85997343]
[1739310908703,8.80877343,198.05,197.98,8.80877343]
[1739310908905,8.80877343,198.05,197.96,0.03700006]
[1739310908906,8.80877343,198.03,197.96,8.84577349]
[1739310909603,8.80877343,198.01,197.96,8.84577349]
[1739310909801,8.84592181,198.01,197.96,8.84577349]
[1739310910103,8.80877343,197.99,197.96,0.03700006]
[1739310910504,8.80877343,197.97,197.96,0.03700006]
[1739310914805,8.80877343,197.97,197.87,1.4838]
[1739310915008,8.80877343,197.91,197.87,1.4838]
[1739310915506,8.80877343,197.93,197.87,1.4838]
[1739310915805,8.80877343,197.95,197.88,8.80877343]
[1739310916106,195.0,198.09,197.93,8.80877343]
[1739310916107,8.80877343,198.0,197.93,8.80877343]
[1739310916510,0.03223535,197.98,197.95,0.03785319]
[1739310917309,8.84100878,197.98,197.95,0.03785319]
[1739310919408,8.80877343,197.96,197.95,0.03785319]
[1739310919609,0.03223535,197.98,197.95,0.03785319]
[1739310922416,0.03223535,197.98,197.97,5.0515]
[1739310923212,13.7796978,198.05,197.95,0.03785319]
[1739310923408,13.7796978,198.08,197.96,13.7796978]
[1739310923805,13.7796978,198.08,198.02,5.0499]
[1739310924113,13.7796978,198.08,197.96,13.7796978]
[1739310924314,13.7796978,198.08,197.98,5.0511]
[1739310924613,0.03435442,198.04,198.0,0.03287483]
[1739310930217,13.7796978,198.02,198.0,0.03287483]
[1739310930816,0.03435442,198.04,198.0,0.03287483]
[1739310931016,120.14654666,198.11,198.0,13.81257263]
[1739310931211,120.14654666,198.11,198.06,5.0491]
[1739310931408,13.7796978,198.11,198.0,13.7796978]
[1739310931611,13.7796978,198.11,198.0,3.68]
[1739310932014,13.7796978,198.11,198.03,5.0497]
[1739310932213,0.03757329,198.07,198.04,0.03784031]
[1739310932615,0.03757329,198.07,198.04,5.08744031]
[1739310932815,0.03757329,198.07,198.04,0.03784031]
[1739310933209,0.03757329,198.07,198.04,5.08754031]
[1739310933410,0.03757329,198.07,198.04,0.03784031]
[1739310936420,16.9624978,198.17,198.04,0.03784031]
[1739310936619,22.0088978,198.17,198.08,5.0487]
[1739310936921,16.9624978,198.17,198.08,5.0487]
[1739310937422,13.7796978,198.14,198.04,3.018]
[1739310937623,13.81797485,198.14,198.11,0.0374784]
[1739310937824,0.03827705,198.14,198.09,5.0483]
[1739310938120,0.03827705,198.14,198.11,0.03787328]
[1739310942924,13.81797485,198.14,198.11,0.03787328]
[1739310943622,5.0475,198.13,198.11,0.03787328]
[1739310945026,13.81797485,198.14,198.11,0.03787328]
[1739310945234,0.03827705,198.14,198.11,0.03787328]
[1739310946537,13.81797485,198.14,198.11,0.03787328]
[1739310947033,5.0474,198.13,198.11,0.03787328]
[1739310950039,13.81797485,198.14,198.11,0.03787328]
[1739310951738,5.0475,198.13,198.11,0.03787328]
[1739310952036,13.81797485,198.14,198.11,0.03787328]
[1739310952542,5.0482,198.1,198.03,5.0498]
[1739310952745,18.8278978,198.1,198.03,5.0498]
[1739310953141,5.0484,198.09,198.01,5.0502]
[1739310953543,0.03588369,198.07,198.03,0.03379639]
[1739310955634,0.03588369,198.07,198.03,5.08349639]
[1739310955842,0.03588369,198.07,198.03,0.03379639]
[1739310956040,0.03588369,198.07,198.05,5.0493]
[1739310956543,0.03588369,198.07,198.03,0.03379639]
[1739310956743,0.03588369,198.07,198.06,5.0492]
[1739310956941,0.03588369,198.07,198.03,0.03379639]
[1739310957342,0.03588369,198.07,198.06,5.0492]
[1739310958840,0.03588369,198.07,198.03,5.08369639]
[1739310960244,0.03588369,198.07,198.04,5.0497]
[1739310960442,0.03588369,198.07,198.03,0.03379639]
[1739310960945,13.7796978,198.13,198.06,5.0492]
[1739310961144,13.7796978,198.16,198.04,1.5728]
[1739310961346,13.7796978,198.16,198.05,1.521]
[1739310961548,18.8263978,198.16,198.07,5.0488]
[1739310961748,13.7796978,198.16,198.05,1.521]
[1739310962049,13.7796978,198.16,198.08,5.0486]
[1739310962350,0.0344831,198.12,198.09,0.03609931]
[1739310963747,5.0821831,198.12,198.09,0.03609931]
[1739310965652,0.0344831,198.12,198.09,0.03609931]
[1739310967253,0.0344831,198.12,198.09,5.08429931]
[1739310967456,0.0344831,198.12,198.09,0.03609931]
[1739310967953,0.0344831,198.12,198.11,5.0479]
[1739310968148,0.0344831,198.12,198.09,0.03609931]
[1739310968961,13.7796978,198.1,198.09,0.03609931]
[1739310969161,13.7796978,198.1,197.97,3.0181]
[1739310969352,13.7796978,198.07,197.99,20.60477496]
[1739310970057,13.7796978,198.07,198.0,5.0507]
[1739310970259,0.03623489,198.05,198.01,0.03443095]
[1739310973859,0.03623489,198.05,198.02,5.0502]
[1739310974058,0.03623489,198.05,198.01,0.03443095]
[1739310974259,0.03623489,198.05,198.04,5.0497]
[1739310974559,13.7796978,198.13,198.04,5.0497]
[1739310974962,13.7796978,198.1,198.0,13.7796978]
[1739310975660,0.03480719,198.07,198.03,0.03305368]
[1739310976158,0.03480719,198.07,198.04,5.0496]
[1739310978063,0.03480719,198.07,198.03,0.03305368]
[1739310979769,0.03480719,198.07,198.06,5.0492]
[1739310979968,13.7796978,198.16,198.04,1.5557]
[1739310980170,13.7796978,198.16,198.05,3.1349]
[1739310980470,13.7796978,198.19,198.12,5.0475]
[1739310981269,0.03189815,198.17,198.14,0.03726583]
[1739310981769,13.7796978,198.16,198.14,0.03726583]
[1739310982362,5.0469,198.15,198.14,0.03726583]
[1739310983671,13.7796978,198.16,198.14,0.03726583]
[1739310987173,18.8262978,198.16,198.14,0.03726583]
[1739310988173,13.7796978,198.16,198.14,0.03726583]
[1739310989968,0.03189815,198.17,198.14,0.03726583]
[1739310990565,0.03189815,198.17,198.16,5.0466]
[1739310990971,106.3000429,198.24,198.14,0.03726583]
[1739310991670,13.7796978,198.22,198.14,0.03726583]
[1739310992267,0.03243063,198.2,198.14,0.03726583]
[1739310992779,0.03243063,198.2,198.14,5.08416583]
[1739310992980,0.03243063,198.2,198.14,0.03726583]
[1739310993479,0.03243063,198.2,198.17,5.0463]
[1739310993875,0.03243063,198.2,198.15,1.4957]
[1739310994080,15.3806978,198.28,198.19,5.0459]
[1739310994282,13.7796978,198.28,198.15,15.2753978]
[1739310994470,15.2584978,198.31,198.18,13.7796978]
[1739310994676,13.7796978,198.31,198.21,13.7796978]
[1739310994874,15.3004978,198.34,198.21,13.7796978]
[1739310995075,15.3004978,198.34,198.22,1.4957]
[1739310995076,13.7796978,198.34,198.22,1.4957]
[1739310995274,0.03504676,198.29,198.26,5.07927599]
[1739310996677,13.7796978,198.34,198.26,5.07927599]
[1739310996678,13.7796978,198.37,198.26,0.03537599]
[1739310997180,13.7796978,198.37,198.29,5.0433]
[1739310997375,13.7796978,198.4,198.27,15.3335978]
[1739310997981,0.03766669,198.35,198.32,0.03321724]
[1739310998480,13.7796978,198.43,198.32,0.03321724]
[1739310999683,0.03481664,198.39,198.32,0.03321724]
[1739310999882,0.03481664,198.39,198.33,5.0421]
[1739311000181,0.03481664,198.39,198.32,0.03321724]
[1739311000779,0.03481664,198.39,198.32,5.07571724]
[1739311001083,0.03481664,198.39,198.32,0.03321724]
[1739311001481,0.03481664,198.39,198.33,13.7796978]
[1739311001883,0.03481664,198.39,198.35,5.0418]
[1739311002082,0.03481664,198.39,198.33,13.7796978]
[1739311002992,0.03481664,198.39,198.33,18.8217978]
[1739311003690,0.03481664,198.39,198.33,13.7796978]
[1739311005988,0.03481664,198.39,198.34,5.0419]
[1739311006289,0.03481664,198.39,198.33,13.7796978]
[1739311006686,0.03481664,198.39,198.33,18.8217978]
[1739311006984,0.03481664,198.39,198.32,0.03321724]
[1739311007892,5.07561664,198.39,198.32,0.03321724]
[1739311008489,0.03481664,198.39,198.32,5.07571724]
[1739311009187,0.03481664,198.39,198.32,0.03321724]
[1739311010282,0.03481664,198.39,198.33,13.7796978]
[1739311010687,0.03481664,198.39,198.38,5.041]
[1739311011392,0.03481664,198.39,198.37,5.07411203]
[1739311012690,0.03481664,198.39,198.37,0.03281203]
[1739311024091,0.03481664,198.39,198.29,5.0431]
[1739311024398,13.7796978,198.35,198.28,1.5938]
[1739311024599,13.7796978,198.35,198.24,16.7145978]
[1739311025396,0.03856272,198.31,198.28,0.03564516]
[1739311029096,0.03856272,198.31,198.28,5.07904516]
[1739311030000,0.03856272,198.31,198.28,0.03564516]
[1739311031099,13.7796978,198.29,198.28,0.03564516]
[1739311031298,13.7796978,198.29,198.15,13.7796978]
[1739311031596,13.7796978,198.29,198.15,17.4396978]
[1739311031802,13.7796978,198.26,198.15,17.4396978]
[1739311031998,13.7796978,198.26,198.15,13.7796978]
[1739311032296,0.03317783,198.22,198.17,5.0461]
[1739311032493,0.03317783,198.22,198.19,0.03422387]
[1739311034099,0.03317783,198.22,198.19,5.08002387]
[1739311034295,0.03317783,198.22,198.19,0.03422387]
[1739311035698,0.03317783,198.22,198.19,5.08002387]
[1739311035902,0.03317783,198.22,198.19,0.03422387]
[1739311036104,0.03317783,198.22,198.2,5.0456]
[1739311037000,0.03317783,198.22,198.19,0.03422387]
[1739311037001,0.03317783,198.22,198.21,5.0454]
[1739311037405,0.03317783,198.22,198.19,0.03422387]
[1739311039008,0.03317783,198.22,198.19,5.08012387]
[1739311039603,0.03317783,198.22,198.19,0.03422387]
[1739311041810,5.07837783,198.22,198.19,0.03422387]
[1739311042304,18.8252978,198.2,198.09,13.7796978]
[1739311042506,13.7796978,198.2,198.09,13.7796978]
[1739311042706,13.7796978,198.2,198.13,5.0474]
[1739311043614,0.03341839,198.18,198.15,0.03412061]
[1739311044107,0.03341839,198.18,198.15,5.08092061]
[1739311045113,0.03341839,198.18,198.15,0.03412061]
[1739311047723,0.03341839,198.18,198.15,5.08092061]
[1739311048623,0.03341839,198.18,198.15,0.03412061]
[1739311050017,13.7796978,198.17,198.15,0.03412061]
[1739311050422,13.7796978,198.17,198.07,3.1015]
[1739311050623,13.7796978,198.14,198.07,1.5204]
[1739311051525,13.7796978,198.17,198.1,5.0481]
[1739311051727,0.03573336,198.12,198.09,0.03222901]
[1739311052226,0.03573336,198.12,198.1,5.0481]
[1739311053021,0.03573336,198.12,198.09,5.08062901]
[1739311053428,0.03573336,198.12,198.09,0.03222901]
[1739311054832,0.03573336,198.12,198.11,5.0479]
[1739311055423,0.03573336,198.12,198.09,0.03222901]
[1739311057229,0.03573336,198.12,198.1,5.048]
[1739311057429,0.03573336,198.12,198.09,0.03222901]
[1739311058129,0.03573336,198.12,198.09,5.08042901]
[1739311059832,0.03573336,198.12,198.1,5.0481]
[1739311061830,0.03573336,198.12,198.09,0.03222901]
[1739311062028,0.03573336,198.12,198.11,5.0479]
[1739311062634,13.7796978,198.2,198.09,0.03222901]
[1739311062933,13.7796978,198.2,198.13,5.0472]
[1739311063733,13.7796978,198.2,198.07,3.0767]
[1739311063930,0.03426064,198.18,198.15,0.03504599]
[1739311071732,8.80058529,198.17,198.15,0.03504599]
[1739311074536,13.84698529,198.17,198.15,0.03504599]
[1739311075139,8.80058529,198.17,198.15,0.03504599]
[1739311088250,13.84698529,198.17,198.15,0.03504599]
[1739311088751,8.80058529,198.17,198.15,0.03504599]
[1739311089650,13.84698529,198.17,198.15,0.03504599]
[1739311090153,5.047,198.15,198.09,5.0484]
[1739311090450,8.80058529,198.12,198.09,5.0484]
[1739311090950,8.80058529,198.12,198.04,8.80058529]
[1739311091151,8.80058529,198.1,198.07,5.0487]
[1739311091348,8.837618,198.1,198.07,5.0487]
[1739311091750,8.837618,198.1,198.06,5.08663492]
[1739311091945,8.837618,198.1,198.06,0.03743492]
[1739311092150,8.80058529,198.08,198.06,0.03743492]
[1739311093149,8.837618,198.1,198.06,0.03743492]
[1739311093750,8.837618,198.1,198.06,5.08643492]
[1739311094356,8.837618,198.1,198.06,0.03743492]
[1739311095060,0.03703271,198.1,198.06,0.03743492]
[1739311095253,0.03703271,198.1,198.06,8.83802021]
[1739311095449,0.03703271,198.1,198.09,5.0484]
[1739311096954,8.80058529,198.17,198.13,5.0474]
[1739311098058,0.03525414,198.17,198.13,5.08618074]
[1739311098458,0.03525414,198.17,198.14,5.0471]
[1739311099060,0.03525414,198.17,198.13,0.03878074]
[1739311099261,0.03525414,198.17,198.14,8.80058529]
[1739311100456,0.03525414,198.17,198.15,5.0469]
[1739311100660,0.03525414,198.17,198.14,8.80058529]
[1739311101062,0.03525414,198.17,198.15,5.0469]
[1739311101261,0.03525414,198.17,198.14,8.80058529]
[1739311101462,0.03525414,198.17,198.14,13.84768529]
[1739311101653,0.03525414,198.17,198.14,5.0471]
[1739311102862,0.03525414,198.17,198.13,0.03878074]
[1739311103160,8.83583943,198.17,198.13,0.03878074]
[1739311103763,8.83583943,198.17,198.13,5.08618074]
[1739311105864,8.83583943,198.17,198.13,0.03878074]
[1739311106864,8.83583943,198.17,198.13,5.08608074]
[1739311107761,0.03525414,198.17,198.15,5.0468]
[1739311110666,0.03525414,198.17,198.13,0.03878074]
[1739311110972,0.03525414,198.17,198.14,5.0469]
[1739311111469,0.03525414,198.17,198.15,5.0468]
[1739311113571,0.03525414,198.17,198.14,5.047]
[1739311115566,8.83583943,198.17,198.13,0.03878074]
[1739311116070,0.03525414,198.17,198.13,0.03878074]
[1739311116270,0.03525414,198.17,198.15,5.0469]
[1739311117468,0.03525414,198.17,198.14,5.0471]
[1739311118675,0.03525414,198.17,198.13,0.03878074]
[1739311118874,0.03525414,198.17,198.13,5.08618074]
[1739311120273,0.03525414,198.17,198.14,5.0471]
[1739311123282,0.03525414,198.17,198.13,0.03878074]
[1739311123578,0.03525414,198.17,198.13,5.08608074]
[1739311124080,0.03525414,198.17,198.14,5.0471]
[1739311126687,0.03525414,198.17,198.13,0.03878074]
[1739311127384,0.03525414,198.17,198.15,5.0467]
[1739311130276,0.03525414,198.17,198.16,5.0466]
[1739311130887,8.80058529,198.25,198.2,5.0454]
[1739311131183,8.80058529,198.23,198.16,8.80058529]
[1739311131487,8.80058529,198.23,198.19,5.0457]
[1739311131882,8.80058529,198.21,198.19,0.03801961]
[1739311144594,13.84618529,198.21,198.19,0.03801961]
[1739311144796,8.80058529,198.15,198.13,5.0473]
[1739311145397,8.80058529,198.15,198.12,5.0476]
[1739311145597,8.80058529,198.17,198.1,8.80058529]
[1739311145799,0.03469412,198.15,198.12,0.03596126]
[1739311146395,0.03469412,198.15,198.13,5.0472]
[1739311146600,0.03469412,198.15,198.12,0.03596126]
[1739311146893,8.80058529,198.21,198.14,8.80058529]
[1739311147794,8.80058529,198.21,198.16,5.0466]
[1739311148091,0.03769919,198.19,198.16,0.03869216]
[1739311148797,0.03769919,198.19,198.17,5.0463]
[1739311151291,0.03769919,198.19,198.16,0.03869216]
[1739311151292,0.03769919,198.19,198.18,5.0461]
[1739311155304,0.03769919,198.19,198.18,13.84668529]
[1739311156503,0.03769919,198.19,198.18,5.0461]
[1739311159209,0.03769919,198.19,198.17,1.5183]
[1739311160808,0.03769919,198.19,198.17,6.5645]
[1739311163108,0.03769919,198.19,198.18,5.0461]
[1739311169417,0.03769919,198.19,198.17,6.5646]
[1739311170413,0.03769919,198.19,198.17,1.5183]
[1739311170621,0.03769919,198.19,198.16,5.08519216]
[1739311171118,0.03769919,198.19,198.16,0.03869216]
[1739311171419,8.83828448,198.19,198.16,0.03869216]
[1739311175715,8.80058529,198.17,198.16,0.03869216]
[1739311184724,8.83828448,198.19,198.16,0.03869216]
[1739311185726,8.80058529,198.17,198.16,0.03869216]
[1739311185923,8.83828448,198.19,198.16,0.03869216]
[1739311186327,0.03769919,198.19,198.16,0.03869216]
[1739311186526,0.03769919,198.19,198.17,5.0464]
[1739311187321,0.03769919,198.19,198.16,5.08529216]
[1739311187827,0.03769919,198.19,198.16,0.03869216]
[1739311188329,0.03769919,198.19,198.17,5.0464]
[1739311188833,0.03769919,198.19,198.16,8.83927745]
[1739311189430,0.03769919,198.19,198.16,0.03869216]
[1739311191029,0.03769919,198.19,198.16,8.83927745]
[1739311191426,0.03769919,198.19,198.16,5.08529216]
[1739311191727,0.03769919,198.19,198.16,0.03869216]
[1739311191930,0.03769919,198.19,198.16,8.83927745]
[1739311192129,0.03769919,198.19,198.16,13.88567745]
[1739311192326,0.03769919,198.19,198.16,8.83927745]
[1739311193527,0.03769919,198.19,198.16,13.88587745]
[1739311194130,0.03769919,198.19,198.16,8.83927745]
[1739311194326,0.03769919,198.19,198.17,5.0463]
[1739311194720,0.03769919,198.19,198.18,5.0461]
[1739311196831,0.03769919,198.19,198.17,5.0463]
[1739311197433,0.03769919,198.19,198.16,8.83927745]
[1739311197634,0.03769919,198.19,198.18,5.0461]
[1739311200626,0.03769919,198.19,198.17,5.0463]
[1739311201533,0.03769919,198.19,198.16,8.83927745]
[1739311202029,0.03769919,198.19,198.16,0.03869216]
[1739311202429,0.03769919,198.19,198.16,8.83927745]
[1739311203136,0.03769919,198.19,198.18,5.0461]
[1739311203531,0.03769919,198.19,198.16,8.83927745]
[1739311203731,0.03769919,198.19,198.17,5.0463]
[1739311203934,0.03769919,198.19,198.16,0.03869216]
[1739311204138,8.83828448,198.19,198.16,0.03869216]
[1739311204531,8.80058529,198.17,198.16,0.03869216]
[1739311204734,8.80058529,198.17,198.1,1.5115]
[1739311204934,8.80058529,198.12,198.08,22.28142828]
[1739311205235,8.80058529,198.12,198.08,20.75002828]
[1739311205935,8.83394,198.12,198.08,20.78322055]
[1739311206741,8.83394,198.12,198.09,5.0482]
[1739311207238,8.83394,198.12,198.1,5.0481]
[1739311208034,0.03335471,198.12,198.08,5.08159227]
[1739311208234,0.03335471,198.12,198.08,0.03319227]
[1739311209738,0.03335471,198.12,198.09,5.0484]
[1739311210741,0.03335471,198.12,198.08,0.03319227]
[1739311210941,8.83394,198.12,198.08,0.03319227]
[1739311211443,8.80058529,198.1,198.08,0.03319227]
[1739311211838,0.03335471,198.12,198.08,8.83377756]
[1739311212133,0.03335471,198.12,198.11,5.0479]
[1739311212338,0.03335471,198.12,198.1,8.80058529]
[1739311212339,8.80058529,198.2,198.1,8.80058529]
[1739311212542,3.1412,198.27,198.05,3.0355]
[1739311212543,8.80058529,198.24,198.16,8.80058529]
[1739311212743,8.80058529,198.24,198.18,8.80058529]
[1739311212938,147.64615606,198.32,198.22,5.0451]
[1739311212939,8.80058529,198.26,198.22,5.0451]
[1739311213147,8.80058529,198.28,198.2,8.80058529]
[1739311213339,8.80058529,198.28,198.22,8.80058529]
[1739311213541,8.80058529,198.28,198.22,8.83652712]
[1739311213749,0.03730448,198.26,198.22,8.83652712]
[1739311214246,0.03730448,198.26,198.24,5.0446]
[1739311214448,0.03730448,198.26,198.24,8.80058529]
[1739311215046,0.03730448,198.26,198.25,5.0443]
[1739311215542,0.03730448,198.26,198.24,8.80058529]
[1739311215746,0.03730448,198.26,198.22,8.83652712]
[1739311218047,0.03730448,198.26,198.22,13.88162712]
[1739311218250,0.03730448,198.26,198.24,8.80058529]
[1739311219743,0.03730448,198.26,198.25,5.0443]
[1739311220650,8.80058529,198.34,198.26,5.0439]
[1739311220850,8.80058529,198.34,198.28,8.80058529]
[1739311221149,8.80058529,198.38,198.32,8.80058529]
[1739311221856,0.03652126,198.37,198.33,5.07643557]
[1739311222249,0.03652126,198.37,198.33,0.03433557]
[1739311223854,0.03652126,198.37,198.36,13.84208529]
[1739311224057,8.80058529,198.46,198.39,8.80058529]
[1739311225060,8.83245488,198.44,198.41,0.03864245]
[1739311228653,8.80058529,198.42,198.41,0.03864245]
[1739311229054,13.84058529,198.42,198.41,0.03864245]
[1739311229356,8.80058529,198.42,198.41,0.03864245]
[1739311230960,8.83245488,198.44,198.41,0.03864245]
[1739311231651,0.03186959,198.44,198.41,0.03864245]
[1739311237161,18.75214741,198.42,198.41,0.03864245]
[1739311237362,13.71214741,198.42,198.41,0.03864245]
[1739311237964,3.08006959,198.44,198.41,0.03864245]
[1739311238462,8.11956959,198.44,198.41,0.03864245]
[1739311239164,5.07136959,198.44,198.41,0.03864245]
[1739311241162,0.03186959,198.44,198.41,0.03864245]
[1739311242263,5.07146959,198.44,198.41,0.03864245]
[1739311244667,0.03186959,198.44,198.41,0.03864245]
[1739311246059,0.03186959,198.44,198.43,5.0398]
[1739311246667,1.9008094,198.47,198.41,0.03864245]
[1739311246867,1.9008094,198.47,198.46,5.039]
[1739311247265,1.9008094,198.47,198.42,13.71214741]
[1739311247465,1.9008094,198.47,198.43,5.0397]
[1739311247866,1.93618456,198.47,198.43,5.0397]
[1739311248268,0.03537516,198.47,198.43,5.0397]
[1739311248470,0.03537516,198.47,198.42,13.71214741]
[1739311249574,0.03537516,198.47,198.44,5.0394]
[1739311250273,0.03537516,198.47,198.42,13.71214741]
[1739311250674,13.71214741,198.57,198.45,13.71214741]
[1739311250866,13.71214741,198.57,198.49,5.0381]
[1739311251266,13.71214741,198.57,198.45,13.71214741]
[1739311251671,13.71214741,198.57,198.5,5.0379]
[1739311251870,0.03769309,198.53,198.5,5.0379]
[1739311253275,0.03769309,198.53,198.49,0.03349292]
[1739311253476,0.03769309,198.53,198.49,5.07169292]
[1739311253771,0.03769309,198.53,198.49,0.03349292]
[1739311255974,5.0377,198.52,198.49,0.03349292]
[1739311256171,13.71214741,198.51,198.49,0.03349292]
[1739311256679,18.75004741,198.51,198.49,0.03349292]
[1739311256873,13.71214741,198.51,198.49,0.03349292]
[1739311257878,18.74994741,198.51,198.49,0.03349292]
[1739311258781,5.038,198.5,198.49,0.03349292]
[1739311259684,18.74994741,198.51,198.49,0.03349292]
[1739311260180,5.0375,198.52,198.49,0.03349292]
[1739311261175,18.74994741,198.51,198.49,0.03349292]
[1739311261880,13.71214741,198.51,198.49,0.03349292]
[1739311262079,5.038,198.5,198.49,0.03349292]
[1739311262979,13.71214741,198.51,198.49,0.03349292]
[1739311263582,8.77193257,198.5,198.49,0.03349292]
[1739311264485,8.77193257,198.52,198.49,0.03349292]
[1739311265088,8.77193257,198.52,198.49,5.07169292]
[1739311265784,0.03769309,198.53,198.49,0.03349292]
[1739311265984,0.03769309,198.53,198.52,5.0375]
[1739311266389,8.77193257,198.58,198.51,8.77193257]
[1739311266588,8.77193257,198.58,198.53,8.77193257]
[1739311267190,8.77193257,198.58,198.53,13.80913257]
[1739311267390,8.77193257,198.58,198.53,8.77193257]
[1739311267593,0.03420825,198.57,198.54,0.0340231]
[1739311267892,13.69296877,198.62,198.54,0.0340231]
[1739311268087,0.03260552,198.57,198.54,0.0340231]
[1739311268986,0.03260552,198.57,198.56,5.0365]
[1739311269185,13.69296877,198.65,198.54,0.0340231]
[1739311269592,13.69296877,198.68,198.56,13.69296877]
[1739311270491,13.69296877,198.68,198.6,0.0350917]
[1739311270693,13.69296877,198.68,198.61,5.0351]
[1739311271794,13.69296877,198.68,198.6,0.0350917]
[1739311272287,13.69296877,198.65,198.6,0.0350917]
[1739311272495,5.0344,198.64,198.6,0.0350917]
[1739311273488,13.69296877,198.65,198.6,0.0350917]
[1739311273683,13.69296877,198.62,198.6,0.0350917]
[1739311274089,5.0357,198.6,198.5,9.6013]
[1739311274293,13.69296877,198.58,198.5,1.5852]
[1739311275086,13.69296877,198.61,198.5,1.5852]
[1739311275290,13.69296877,198.64,198.5,15.27816877]
[1739311275490,0.03875975,198.56,198.52,0.0375225]
[1739311275685,195.0,198.67,198.53,13.69296877]
[1739311275892,13.69296877,198.68,198.56,13.69296877]
[1739311276800,5.0339,198.67,198.57,5.036]
[1739311276988,13.69296877,198.68,198.6,0.03766597]
[1739311278103,18.72646877,198.68,198.6,0.03766597]
[1739311279000,13.69296877,198.68,198.6,5.07306597]
[1739311279197,13.69296877,198.68,198.6,0.03766597]
[1739311279403,1.6118,198.7,198.6,0.03766597]
[1739311280095,195.0,198.75,198.6,1.52506597]
[1739311280096,13.69296877,198.74,198.6,1.52506597]
[1739311280297,13.69296877,198.74,198.6,3.0533]
[1739311280600,1.4765,198.73,198.65,0.03195273]
[1739311281300,1.4765,198.73,198.66,5.0339]
[1739311281805,13.69296877,198.74,198.69,5.0332]
[1739311282102,1.496,198.75,198.65,13.69296877]
[1739311282300,1.496,198.75,198.7,0.0363956]
[1739311282604,13.69296877,198.77,198.7,0.0363956]
[1739311284212,3.1122,198.79,198.7,5.0692956]
[1739311284608,3.1122,198.79,198.7,0.0363956]
[1739311285310,3.1122,198.79,198.7,5.0692956]
[1739311286313,6.5637,198.79,198.7,0.0363956]
[1739311286510,13.69296877,198.8,198.7,0.0363956]
[1739311286709,1.5126,198.81,198.71,13.69296877]
[1739311287012,1.5126,198.81,198.74,5.0319]
[1739311287215,1.5126,198.81,198.74,5.06680461]
[1739311288312,1.5126,198.81,198.75,5.0316]
[1739311288710,1.5126,198.81,198.74,5.06680461]
[1739311288911,1.5126,198.81,198.74,0.03490461]
[1739311290311,6.5428,198.81,198.74,0.03490461]
[1739311290513,13.69296877,198.83,198.74,0.03490461]
[1739311291116,13.69296877,198.83,198.76,5.0314]
[1739311291715,13.69296877,198.83,198.74,0.03490461]
[1739311291915,13.69296877,198.83,198.75,5.0316]
[1739311292512,13.69296877,198.83,198.76,5.0313]
[1739311293720,13.69296877,198.83,198.74,0.03490461]
[1739311293915,13.69296877,198.83,198.77,5.0311]
[1739311294111,13.69296877,198.83,198.74,0.03490461]
[1739311294316,13.69296877,198.83,198.76,5.0312]
[1739311294508,13.69296877,198.83,198.77,0.032037]
[1739311295919,13.69296877,198.8,198.77,0.032037]
[1739311297216,5.0303,198.81,198.77,0.032037]
[1739311297217,13.69296877,198.83,198.77,0.032037]
[1739311298321,13.69296877,198.8,198.77,0.032037]
[1739311298821,18.72346877,198.8,198.77,0.032037]
[1739311300318,13.69296877,198.8,198.65,77.52431775]
[1739311300523,13.69296877,198.72,198.62,15.17776877]
[1739311300919,13.69296877,198.72,198.62,1.4848]
[1739311301324,13.69296877,198.69,198.59,13.69296877]
[1739311301525,13.72786166,198.69,198.65,0.03203707]
[1739311302224,15.18746166,198.69,198.65,0.03203707]
[1739311302921,20.22066166,198.69,198.65,0.03203707]
[1739311303125,15.18746166,198.69,198.65,0.03203707]
[1739311306229,16.70056166,198.69,198.65,0.03203707]
[1739311307021,13.69296877,198.66,198.65,0.03203707]
[1739311307330,3.00759289,198.69,198.65,0.03203707]
[1739311309221,5.0335,198.68,198.65,0.03203707]
[1739311309423,3.00759289,198.69,198.65,0.03203707]
[1739311309630,13.69296877,198.67,198.65,0.03203707]
[1739311310625,3.00759289,198.69,198.65,0.03203707]
[1739311310928,3.00759289,198.69,198.65,5.06623707]
[1739311312534,0.03489289,198.69,198.65,5.06623707]
[1739311312933,0.03489289,198.69,198.66,5.0339]
[1739311313134,0.03489289,198.69,198.65,0.03203707]
[1739311315230,0.03489289,198.69,198.65,5.06623707]
[1739311315433,0.03489289,198.69,198.65,0.03203707]